bitfinex-derivatives/quotes_ETHF0:USTF0_20250614
["timestamp","ask_amount","ask_price","bid_price","bid_amount"]
[1749889004289,0.47413,2529.8,2529.6,30.59]
[1749889004594,0.47413,2529.8,2529.6,31.06416]
[1749889005390,1.10611,2529.9,2529.7,6.319]
[1749889005593,0.9978661,2529.8,2529.7,6.319]
[1749889008797,0.9978661,2529.8,2529.7,6.79314]
[1749889008998,0.9978661,2529.8,2529.7,6.319]
[1749889009999,1.4719861,2529.8,2529.7,6.319]
[1749889010298,0.9978661,2529.8,2529.7,6.319]
[1749889010997,0.9978661,2529.8,2529.6,31.06416]
[1749889011196,1.10612,2529.9,2529.6,31.06416]
[1749889011497,1.47246252,2529.8,2529.6,30.59]
[1749889011698,1.10612,2529.9,2529.6,30.59]
[1749889011898,0.99833842,2529.8,2529.6,30.59]
[1749889012098,0.47413,2529.8,2529.4,0.6607]
[1749889012401,0.47413,2529.8,2529.5,31.06317]
[1749889012600,0.9983469,2529.7,2529.5,31.06317]
[1749889012796,0.47412,2529.8,2529.5,30.589]
[1749889013096,0.99833513,2529.7,2529.5,31.06318]
[1749889013302,0.632,2529.9,2529.5,30.589]
[1749889013602,0.47419,2529.5,2529.3,33.7968]
[1749889013801,0.4742,2529.4,2529.3,33.7968]
[1749889014006,0.47419,2529.5,2529.3,33.7968]
[1749889014607,1.68878139,2529.4,2529.3,33.7968]
[1749889017010,1.68878139,2529.4,2529.3,3.2078]
[1749889017209,2.16298139,2529.4,2529.3,27.4778]
[1749889018404,1.68878139,2529.4,2529.3,24.271]
[1749889018607,2.16300139,2529.4,2529.3,24.271]
[1749889019212,2.16300139,2529.4,2529.3,24.27]
[1749889019707,0.47422,2529.3,2529.2,6.32592464]
[1749889019899,0.47422,2529.3,2529.2,30.59592464]
[1749889020409,0.47422,2529.3,2529.2,0.00592464]
[1749889020601,2.13581359,2529.3,2529.2,0.00592464]
[1749889023404,1.47161359,2529.3,2529.2,0.00592464]
[1749889023610,0.99739359,2529.3,2529.2,0.00592464]
[1749889023810,3.2078,2529.7,2529.3,0.47422]
[1749889024007,3.2078,2529.7,2529.4,25.6498]
[1749889024207,3.2078,2529.7,2529.5,1.85397]
[1749889024405,3.2078,2529.7,2529.6,1.3798]
[1749889024910,3.2078,2529.7,2529.6,1.85396]
[1749889025107,3.68189,2530.0,2529.6,1.3798]
[1749889025310,3.2078,2530.0,2529.7,24.27]
[1749889025513,0.47411,2529.9,2529.8,1.3798]
[1749889025816,3.2078,2530.0,2529.8,2.49661]
[1749889026109,0.47405,2530.2,2529.9,0.47411]
[1749889026408,0.47404,2530.3,2530.0,24.27]
[1749889026611,0.47404,2530.3,2530.1,7.6714]
[1749889027007,3.2078,2530.4,2530.1,7.6714]
[1749889027512,0.47404,2530.3,2530.1,7.6714]
[1749889028016,0.47405,2530.2,2530.1,7.6714]
[1749889028511,0.47404,2530.3,2530.1,7.6714]
[1749889029116,3.68182,2530.4,2530.1,7.6714]
[1749889029317,3.68182,2530.4,2530.2,1.3467]
[1749889029720,3.68182,2530.4,2530.3,24.267]
[1749889030309,3.68181,2530.4,2530.3,24.267]
[1749889030713,3.2078,2530.4,2530.3,24.267]
[1749889031216,0.474,2530.5,2530.3,25.6137]
[1749889031420,0.6331,2530.6,2530.3,26.08772]
[1749889031620,0.6331,2530.6,2530.4,1.3467]
[1749889031822,0.6331,2530.6,2530.5,6.314]
[1749889032023,3.2078,2530.8,2530.5,6.314]
[1749889032321,0.47396,2530.7,2530.6,24.265]
[1749889033317,3.2078,2530.8,2530.6,24.265]
[1749889033721,3.68175,2530.8,2530.6,25.5988]
[1749889033917,3.2078,2530.8,2530.6,25.5988]
[1749889034122,0.47396,2530.7,2530.6,25.5988]
[1749889034923,3.68175,2530.8,2530.6,25.5988]
[1749889035123,3.2078,2530.8,2530.6,26.07276]
[1749889035325,3.2078,2530.8,2530.7,1.3345]
[1749889035825,3.2078,2530.8,2530.7,1.80846]
[1749889036123,3.68169,2531.1,2530.8,0.47393]
[1749889036321,3.68169,2531.1,2530.9,31.9075]
[1749889036526,3.2078,2531.1,2531.0,1.3345]
[1749889036726,3.68168,2531.1,2531.0,1.3345]
[1749889037024,3.2078,2531.1,2531.0,1.3345]
[1749889037625,3.68168,2531.1,2531.0,1.3345]
[1749889039927,0.4739,2531.0,2530.9,31.9125]
[1749889040730,3.2078,2531.1,2530.7,0.00592464]
[1749889041124,3.2078,2531.1,2530.8,30.568]
[1749889041330,0.47392,2530.9,2530.8,30.568]
[1749889042123,0.47391,2531.0,2530.8,30.568]
[1749889042319,3.68169,2531.1,2530.8,31.04192]
[1749889042524,3.2078,2531.1,2531.0,0.4739]
[1749889042723,3.68168,2531.1,2530.9,2.45061]
[1749889042925,3.68168,2531.1,2531.0,1.3046]
[1749889043128,3.2078,2531.1,2531.0,1.3046]
[1749889043525,3.68168,2531.1,2531.0,1.3046]
[1749889043828,3.2078,2531.1,2531.0,1.7785]
[1749889044229,3.68168,2531.1,2531.0,1.3046]
[1749889044429,3.2078,2531.1,2531.0,1.3046]
[1749889044729,3.68168,2531.1,2531.0,1.3046]
[1749889045833,0.4739,2531.0,2530.9,0.6721]
[1749889046532,0.47392,2530.9,2530.8,30.568]
[1749889046733,3.2078,2531.1,2530.8,30.568]
[1749889046927,0.47391,2531.0,2530.7,1.75367464]
[1749889047127,0.47392,2530.9,2530.8,30.563]
[1749889047933,1.16391,2531.0,2530.8,31.03693]
[1749889048135,1.16391,2531.0,2530.8,30.563]
[1749889048632,0.47392,2530.9,2530.8,30.563]
[1749889049229,0.47394,2530.8,2530.7,0.00592464]
[1749889049427,0.47394,2530.8,2530.7,30.56692464]
[1749889050738,0.47394,2530.8,2530.7,0.00592464]
[1749889051036,3.68174,2530.8,2530.7,0.00592464]
[1749889053137,3.2078,2530.8,2530.7,0.00592464]
[1749889053335,4.93752237,2531.0,2530.7,0.00592464]
[1749889053636,1.81352,2531.0,2530.7,0.00592464]
[1749889053836,1.81352,2531.0,2530.8,24.248]
[1749889053837,1.3396,2531.0,2530.8,24.248]
[1749889054038,1.3396,2531.0,2530.8,24.72192]
[1749889054829,1.3396,2531.0,2530.8,24.248]
[1749889055034,3.2078,2531.1,2531.0,0.4739]
[1749889055232,3.2078,2531.1,2530.9,1.74071]
[1749889056236,3.2078,2531.1,2531.0,6.312]
[1749889056437,3.68168,2531.1,2531.0,6.312]
[1749889056632,3.2078,2531.1,2531.0,6.312]
[1749889056837,3.2078,2531.1,2531.0,6.7859]
[1749889057640,3.2078,2531.1,2531.0,8.0559]
[1749889058135,3.2078,2531.8,2531.4,0.47382]
[1749889058333,0.47379,2531.6,2531.5,24.246]
[1749889059635,0.47377,2531.7,2531.5,24.246]
[1749889060437,0.47376,2531.8,2531.5,24.246]
[1749889060635,0.99724451,2531.7,2531.5,24.246]
[1749889060835,0.47376,2531.8,2531.5,24.7198]
[1749889061031,0.99725576,2531.7,2531.6,0.47379]
[1749889061231,0.6805,2531.9,2531.6,0.47379]
[1749889061434,0.6805,2531.9,2531.6,1.78769]
[1749889061741,0.6805,2531.9,2531.6,1.78767]
[1749889062039,0.6805,2531.9,2531.6,4.99547]
[1749889062236,0.6805,2531.9,2531.7,0.47376]
[1749889062434,0.6805,2531.9,2531.8,24.243]
[1749889062639,1.67754188,2531.9,2531.8,24.243]
[1749889063340,0.99704188,2531.9,2531.8,30.548]
[1749889063547,1.47077188,2531.9,2531.8,30.548]
[1749889064534,0.99704188,2531.9,2531.6,3.2078]
[1749889064842,0.47387,2531.2,2531.0,9.5128]
[1749889065139,0.47388,2531.1,2531.0,33.7528]
[1749889065539,0.47387,2531.2,2531.0,33.7528]
[1749889065742,0.47388,2531.1,2531.0,33.7528]
[1749889066241,1.3456,2531.4,2531.0,33.7528]
[1749889066440,0.47388,2531.1,2531.0,33.7528]
[1749889066640,0.47387,2531.2,2531.0,33.7528]
[1749889067041,0.47388,2531.1,2531.0,33.7528]
[1749889068042,1.3456,2531.4,2531.0,33.7528]
[1749889068243,0.47388,2531.1,2531.0,33.7528]
[1749889069141,0.47388,2531.1,2531.0,9.5128]
[1749889069351,0.47388,2531.1,2531.0,30.544]
[1749889069937,1.46972413,2531.1,2531.0,30.544]
[1749889070645,0.47388,2531.1,2531.0,30.544]
[1749889071148,0.47387,2531.2,2531.0,30.544]
[1749889071752,0.47388,2531.1,2531.0,30.544]
[1749889078855,2.33817646,2532.3,2531.0,8.2078]
[1749889079065,0.47378,2531.7,2531.6,3.2078]
[1749889079454,1.47063928,2531.7,2531.6,3.2078]
[1749889079656,1.4705451,2531.7,2531.6,3.2078]
[1749889080159,0.9967651,2531.7,2531.6,3.2078]
[1749889080462,4.5136,2532.1,2531.6,3.68158]
[1749889080463,0.47372,2532.0,2531.6,3.68158]
[1749889080762,1.3058,2532.1,2531.7,25.5784]
[1749889081157,0.99692991,2532.0,2531.6,3.8743]
[1749889081356,0.47377,2531.7,2531.6,3.2078]
[1749889081559,0.47377,2531.7,2531.6,27.4428]
[1749889082261,0.47376,2531.8,2531.6,27.4428]
[1749889082458,0.47377,2531.7,2531.6,27.4428]
[1749889082658,0.47376,2531.8,2531.6,27.4428]
[1749889083466,0.47377,2531.7,2531.6,27.4428]
[1749889083671,0.47377,2531.7,2531.6,3.2078]
[1749889084064,0.47382,2531.4,2531.3,6.305]
[1749889084360,0.47382,2531.4,2531.3,30.54]
[1749889085164,0.47382,2531.4,2531.3,6.305]
[1749889085366,0.47382,2531.4,2531.3,30.538]
[1749889085668,1.81112,2531.5,2531.3,30.538]
[1749889087171,0.47382,2531.4,2531.3,6.305]
[1749889087470,1.470693,2531.4,2531.3,30.538]
[1749889087665,0.47384,2531.3,2531.2,3.2078]
[1749889087859,0.996873,2531.3,2531.2,27.4408]
[1749889088065,1.470713,2531.3,2531.2,27.4408]
[1749889088467,0.996873,2531.3,2531.2,27.4408]
[1749889088667,1.3373,2531.5,2531.2,27.4408]
[1749889088875,0.99647515,2531.4,2531.2,27.4408]
[1749889089072,1.81111,2531.5,2531.2,28.8148]
[1749889089381,1.47023247,2531.4,2531.2,28.8148]
[1749889089673,0.47384,2531.3,2531.2,28.8148]
[1749889090974,0.47384,2531.4,2531.2,28.8148]
[1749889091674,0.47384,2531.3,2531.2,28.8148]
[1749889092475,1.47007601,2531.3,2531.2,28.8148]
[1749889094272,1.47007601,2531.3,2531.2,27.4408]
[1749889096173,0.99623601,2531.3,2531.2,27.91466]
[1749889096373,0.4738,2531.6,2531.3,0.47384]
[1749889096674,0.99635484,2531.5,2531.4,25.4811]
[1749889096871,0.6584,2531.8,2531.4,26.1396]
[1749889097064,1.47026008,2531.7,2531.6,3.2078]
[1749889098066,0.99649008,2531.7,2531.6,3.2078]
[1749889098276,0.99649008,2531.7,2531.6,27.4408]
[1749889098476,1.47026008,2531.7,2531.6,28.6889]
[1749889098670,1.47026008,2531.7,2531.6,3.2078]
[1749889098878,0.47388,2531.1,2531.0,3.2078]
[1749889099179,0.47393,2530.9,2530.7,25.52152464]
[1749889099373,0.47391,2531.0,2530.7,25.52152464]
[1749889099874,0.47393,2530.9,2530.7,25.52152464]
[1749889100276,2.5762,2531.3,2530.7,1.28952464]
[1749889100277,0.47394,2530.8,2530.7,1.28952464]
[1749889100475,0.47394,2530.8,2530.7,25.52052464]
[1749889101179,3.76085,2531.3,2530.7,25.52052464]
[1749889101476,0.47394,2530.8,2530.7,1.28952464]
[1749889101677,0.47393,2530.9,2530.7,25.52052464]
[1749889102777,1.2826,2531.2,2530.7,25.52052464]
[1749889102972,0.47391,2531.0,2530.7,25.52052464]
[1749889103175,0.6692,2531.3,2530.9,3.2078]
[1749889103377,0.6692,2531.3,2530.7,25.52052464]
[1749889103378,0.47383,2531.4,2531.2,3.2078]
[1749889103566,0.47383,2531.4,2531.2,28.7664]
[1749889105178,0.6849,2531.6,2531.2,28.7664]
[1749889105473,0.99585063,2531.5,2531.0,6.301]
[1749889105676,0.99585063,2531.5,2531.1,24.232]
[1749889105677,0.47388,2531.2,2531.1,24.232]
[1749889106478,0.47385,2531.3,2531.1,24.232]
[1749889107779,0.47384,2531.4,2531.2,3.2078]
[1749889107975,0.47384,2531.4,2531.2,4.4612]
[1749889108180,0.6849,2531.6,2531.3,24.232]
[1749889108382,1.46985582,2531.5,2531.3,25.4854]
[1749889108583,0.47381,2531.5,2531.3,25.4854]
[1749889109286,0.47382,2531.4,2531.3,24.232]
[1749889109579,0.47384,2531.3,2531.2,3.2078]
[1749889109785,0.47384,2531.3,2531.2,27.4398]
[1749889109981,0.47384,2531.3,2531.2,3.2078]
[1749889110181,0.47384,2531.3,2531.2,27.4398]
[1749889110678,0.6849,2531.6,2531.2,27.4398]
[1749889110884,0.47376,2531.8,2531.5,3.2078]
[1749889111086,0.47377,2531.7,2531.6,30.533]
[1749889111382,0.47376,2531.8,2531.6,30.533]
[1749889111582,1.3333,2532.1,2531.6,30.533]
[1749889111774,0.47376,2531.8,2531.6,30.533]
[1749889112077,1.3333,2532.1,2531.6,30.533]
[1749889112078,1.3333,2532.1,2531.6,31.00678]
[1749889112283,0.99637941,2532.0,2531.8,0.47374]
[1749889112588,1.1341,2532.1,2531.9,25.611]
[1749889113282,0.6604,2532.1,2531.9,25.611]
[1749889113486,0.47371,2532.0,2531.9,25.611]
[1749889114184,1.1341,2532.1,2531.9,25.611]
[1749889114389,0.47371,2532.0,2531.9,25.611]
[1749889114886,1.1341,2532.1,2531.9,25.611]
[1749889115186,0.6604,2532.1,2531.9,25.611]
[1749889115687,0.47371,2532.0,2531.9,25.611]
[1749889118686,0.47371,2532.0,2531.9,24.232]
[1749889119490,0.47375,2531.8,2531.7,0.6899]
[1749889119690,0.47375,2531.8,2531.7,31.2179]
[1749889119988,0.47374,2531.9,2531.7,31.2179]
[1749889120187,0.47375,2531.8,2531.7,31.2179]
[1749889120379,0.47379,2531.6,2531.5,44.0078]
[1749889120584,0.47379,2531.6,2531.5,74.5328]
[1749889120986,0.47378,2531.7,2531.5,33.7328]
[1749889121182,0.47378,2531.7,2531.5,36.07761]
[1749889121386,0.47378,2531.7,2531.5,5.0788]
[1749889121588,0.47379,2531.6,2531.5,5.0788]
[1749889121890,0.47379,2531.6,2531.5,35.6038]
[1749889122287,0.47378,2531.7,2531.5,35.6038]
[1749889122487,0.47378,2531.7,2531.5,36.0776]
[1749889123187,0.47379,2531.6,2531.5,3.2078]
[1749889123384,0.4739,2531.0,2530.9,3.8406]
[1749889123583,0.4739,2531.0,2530.9,28.0676]
[1749889124587,0.4739,2531.0,2530.9,34.3656]
[1749889124988,0.47389,2531.1,2530.9,34.3656]
[1749889125184,0.4739,2531.0,2530.9,34.3656]
[1749889125888,0.4739,2531.0,2530.9,3.2078]
[1749889126090,0.4739,2531.0,2530.9,9.5058]
[1749889126389,0.4739,2531.0,2530.9,33.7328]
[1749889126689,0.4739,2531.0,2530.9,30.525]
[1749889126982,0.47392,2530.9,2530.8,6.41203]
[1749889127187,0.47392,2530.9,2530.8,30.64003]
[1749889129687,0.4739,2531.0,2530.8,30.64003]
[1749889129889,0.4739,2531.0,2530.8,32.01883]
[1749889130192,0.47392,2530.9,2530.8,32.01883]
[1749889131197,1.18439,2531.8,2530.8,37.70003]
[1749889131387,0.47384,2531.3,2531.2,3.2078]
[1749889131691,0.47384,2531.3,2531.2,33.8128]
[1749889132285,1.9868,2531.7,2531.2,34.28665]
[1749889132492,0.4738,2531.6,2531.3,0.47384]
[1749889132690,0.47392,2530.9,2530.8,3.32183]
[1749889132995,3.68172,2530.9,2530.8,0.11403]
[1749889133192,9.67675131,2530.9,2530.8,0.11403]
[1749889133491,4.67675131,2530.9,2530.8,0.11403]
[1749889133882,6.64245131,2530.9,2530.8,0.11403]
[1749889134388,6.64202188,2530.9,2530.8,0.11403]
[1749889135890,6.16810188,2530.9,2530.4,3.2078]
[1749889136087,2.32140188,2530.8,2530.1,6.299]
[1749889136289,0.47404,2530.3,2530.2,24.362]
[1749889137190,0.47405,2530.2,2530.1,6.299]
[1749889140895,1.9554,2530.4,2530.0,0.00592464]
[1749889140896,0.47407,2530.1,2530.0,0.00592464]
[1749889146002,0.6537,2530.2,2530.0,0.00592464]
[1749889146300,0.47407,2530.1,2530.0,0.00592464]
[1749889151209,1.12776,2530.2,2530.0,0.00592464]
[1749889151409,0.6537,2530.2,2530.0,0.00592464]
[1749889151799,0.47407,2530.1,2530.0,0.00592464]
[1749889153909,0.47404,2530.3,2530.0,8.21372464]
[1749889154108,0.47406,2530.2,2530.1,6.346]
[1749889155702,0.00592464,2530.5,2530.1,6.346]
[1749889155908,0.47402,2530.4,2530.1,6.346]
[1749889156106,0.00592464,2530.5,2530.4,0.47401]
[1749889158112,0.00592464,2530.5,2530.3,3.68182]
[1749889158318,0.00592464,2530.5,2530.4,0.47401]
[1749889160928,0.00592464,2530.5,2530.4,5.47401]
[1749889162623,0.00592464,2530.5,2530.4,0.47401]
[1749889164521,0.00592464,2530.5,2530.4,41.27401]
[1749889165721,0.47391,2531.0,2530.4,40.8]
[1749889165917,0.47389,2531.1,2530.9,0.47391]
[1749889166120,0.47389,2531.1,2530.9,24.76191]
[1749889166824,0.4739,2531.0,2530.9,30.633]
[1749889167418,0.47389,2531.1,2530.9,30.633]
[1749889169225,3.68167,2531.2,2530.9,31.10692]
[1749889171020,3.2078,2531.2,2530.9,30.633]
[1749889171225,3.27657436,2531.6,2531.0,3.68168]
[1749889171424,0.47386,2531.3,2531.0,3.68168]
[1749889171625,0.47386,2531.2,2531.0,3.68168]
[1749889171827,0.47386,2531.2,2531.0,3.2078]
[1749889172119,0.47388,2531.1,2531.0,3.2078]
[1749889172627,0.47392,2530.9,2530.8,24.266]
[1749889173416,0.47392,2530.9,2530.6,3.68176]
[1749889173615,3.2078,2531.2,2530.7,30.616]
[1749889173827,0.47394,2530.8,2530.7,30.616]
[1749889174216,0.47393,2530.9,2530.7,30.616]
[1749889174628,0.47393,2530.9,2530.7,31.08995]
[1749889175426,0.4739,2531.0,2530.7,31.08995]
[1749889175627,3.2078,2531.2,2530.7,31.08995]
[1749889175825,0.47392,2530.9,2530.7,31.08995]
[1749889180328,0.47389,2531.1,2530.9,0.47391]
[1749889180533,0.47389,2531.1,2530.9,24.71691]
[1749889181027,0.47389,2531.1,2530.9,24.71692]
[1749889181228,0.47388,2531.1,2530.9,24.243]
[1749889181526,0.4739,2531.0,2530.9,24.243]
[1749889181927,1.47036798,2531.0,2530.9,24.243]
[1749889182131,1.47036798,2531.0,2530.7,6.344]
[1749889182132,0.47392,2530.9,2530.7,0.47395]
[1749889182332,0.47392,2530.9,2530.8,24.248]
[1749889182533,0.47391,2531.0,2530.8,24.248]
[1749889183831,1.47140914,2530.9,2530.8,24.248]
[1749889184339,0.99748914,2530.9,2530.8,24.248]
[1749889184633,1.47140914,2530.9,2530.8,24.248]
[1749889185137,1.47140914,2530.9,2530.7,6.78195]
[1749889185341,0.47394,2530.8,2530.7,6.308]
[1749889185529,0.47394,2530.8,2530.7,30.548]
[1749889186028,4.5212406,2531.1,2530.6,3.2078]
[1749889186029,0.47396,2530.7,2530.6,3.2078]
[1749889186234,0.47399,2530.5,2530.4,24.24]
[1749889186427,0.99832414,2530.5,2530.4,24.24]
[1749889186636,0.99832414,2530.5,2530.4,24.71401]
[1749889186833,0.99832414,2530.5,2530.4,26.07161]
[1749889187237,0.99832414,2530.5,2530.4,25.5976]
[1749889190642,1.47231414,2530.5,2530.4,25.5976]
[1749889190833,0.47401,2530.4,2530.3,6.308]
[1749889191136,0.6671,2531.0,2530.3,30.549]
[1749889191338,1.47164992,2530.9,2530.7,3.2078]
[1749889191533,1.47164992,2530.9,2530.7,9.5158]
[1749889191534,0.99772992,2530.8,2530.7,9.5158]
[1749889191733,0.99772992,2530.8,2530.7,33.7948]
[1749889193741,0.99772992,2530.8,2530.7,34.26876]
[1749889193941,1.78701,2531.0,2530.7,34.26876]
[1749889194240,1.47171569,2530.9,2530.7,34.26876]
[1749889194442,0.47392,2530.9,2530.7,34.26876]
[1749889194635,1.78701,2531.0,2530.7,33.7948]
[1749889194841,0.99779104,2530.9,2530.7,34.26875]
[1749889195043,1.78701,2531.0,2530.8,0.679]
[1749889195238,1.78701,2531.0,2530.9,24.27]
[1749889195435,2.78480524,2531.0,2530.9,24.27]
[1749889195942,2.31089524,2531.0,2530.9,24.27]
[1749889196134,2.78479524,2531.0,2530.9,24.27]
[1749889198639,0.99779524,2531.0,2530.9,24.27]
[1749889198840,0.99779524,2531.0,2530.9,26.09332]
[1749889200141,0.99779524,2531.0,2530.9,25.6194]
[1749889200341,1.47169524,2531.0,2530.9,25.6194]
[1749889202047,1.47169524,2531.0,2530.9,25.5904]
[1749889202848,1.47169524,2531.0,2530.9,24.241]
[1749889205350,0.99779524,2531.0,2530.9,24.241]
[1749889206449,0.99779524,2531.0,2530.9,24.71492]
[1749889206845,0.99779524,2531.0,2530.9,24.241]
[1749889207349,1.47169524,2531.0,2530.9,24.241]
[1749889207852,0.99779524,2531.0,2530.9,24.71492]
[1749889208049,0.6512,2531.7,2531.6,0.47379]
[1749889208250,0.6512,2531.7,2531.6,27.92159]
[1749889208551,0.684,2531.9,2531.6,27.4478]
[1749889208848,0.6512,2532.0,2531.6,29.3385]
[1749889209047,0.6512,2532.0,2531.8,0.47374]
[1749889209247,0.6512,2532.0,2531.8,24.72874]
[1749889209643,1.12491,2532.0,2531.8,24.72874]
[1749889210044,1.12491,2532.0,2531.8,24.255]
[1749889210250,0.6512,2532.0,2531.6,3.8538]
[1749889210549,0.6512,2532.0,2531.7,24.247]
[1749889210550,0.47375,2531.8,2531.7,24.247]
[1749889210747,2.53284,2531.9,2531.7,24.247]
[1749889211146,3.2078,2532.1,2531.7,24.247]
[1749889211352,3.2078,2532.1,2532.0,0.47371]
[1749889211552,3.2078,2532.1,2532.0,31.04271]
[1749889212553,3.68149,2532.1,2532.0,30.569]
[1749889212751,3.2078,2532.1,2531.6,3.68158]
[1749889212948,0.47372,2532.0,2531.8,6.326]
[1749889213456,0.47373,2531.9,2531.8,6.326]
[1749889213851,3.2078,2532.1,2531.8,24.277]
[1749889214051,0.47373,2531.9,2531.8,24.277]
[1749889214846,0.47373,2531.9,2531.7,6.326]
[1749889214847,0.47375,2531.8,2531.7,24.278]
[1749889215151,0.6763,2531.8,2531.7,24.278]
[1749889215747,0.6763,2531.8,2531.7,24.75177]
[1749889216254,3.2078,2532.1,2531.7,24.278]
[1749889216556,3.2078,2532.1,2531.9,0.47373]
[1749889216751,3.2078,2532.1,2532.0,24.275]
[1749889217355,3.68149,2532.1,2532.0,24.275]
[1749889217553,3.2078,2532.1,2532.0,24.275]
[1749889218154,3.68149,2532.1,2532.0,24.275]
[1749889219153,5.54597646,2532.8,2532.0,27.4828]
[1749889219355,1.11748,2532.7,2532.3,3.68145]
[1749889219558,0.4736,2532.6,2532.4,24.276]
[1749889220249,2.38769,2532.7,2532.4,24.276]
[1749889220757,0.4736,2532.6,2532.4,24.276]
[1749889220953,1.11749,2532.7,2532.4,24.276]
[1749889222162,0.6439,2532.7,2532.4,24.276]
[1749889222354,1.11748,2532.7,2532.4,26.03123]
[1749889222854,0.4736,2532.6,2532.4,1.2816]
[1749889223156,0.4736,2532.6,2532.5,24.264]
[1749889223654,1.11749,2532.7,2532.5,24.264]
[1749889223851,0.47354,2533.0,2532.6,0.4736]
[1749889224051,3.8719,2533.1,2532.6,1.8198]
[1749889224253,0.47355,2532.9,2532.6,2.5047]
[1749889224654,3.8719,2533.1,2532.6,2.0311]
[1749889225158,0.47355,2532.9,2532.6,2.50469]
[1749889225359,0.47356,2532.8,2532.6,2.0311]
[1749889225657,0.47357,2532.8,2532.6,2.0311]
[1749889225855,1.13804,2533.0,2532.6,2.0311]
[1749889226052,0.47353,2533.0,2532.7,7.6702]
[1749889226253,0.47353,2533.0,2532.8,1.3462]
[1749889226454,0.47353,2533.0,2532.9,24.256]
[1749889226656,3.2078,2533.1,2532.9,24.72953]
[1749889226858,3.68131,2533.1,2532.9,24.72953]
[1749889227251,3.2078,2533.5,2533.0,3.2078]
[1749889227550,1.18345,2533.8,2533.0,3.2078]
[1749889227551,0.6555,2533.6,2533.0,5.7492]
[1749889227859,0.6555,2533.6,2533.4,0.47344]
[1749889228061,0.47339,2533.8,2533.5,31.07942]
[1749889228259,3.2078,2533.9,2533.6,24.319]
[1749889228464,0.47339,2533.7,2533.6,24.319]
[1749889228754,0.47339,2533.7,2533.6,24.318]
[1749889228962,0.47345,2533.4,2533.3,3.2078]
[1749889229157,0.47344,2533.5,2533.3,3.2078]
[1749889229463,0.47344,2533.5,2533.4,24.325]
[1749889229661,0.47345,2533.4,2533.3,27.5308]
[1749889229961,1.15495,2533.4,2533.3,27.5308]
[1749889232063,0.6815,2533.4,2533.3,27.5308]
[1749889232565,0.47341,2533.7,2533.4,0.47345]
[1749889232761,0.6716,2533.8,2533.4,1.84934]
[1749889232967,0.47341,2533.7,2533.4,1.84934]
[1749889233964,0.6716,2533.8,2533.4,1.84934]
[1749889233965,1.14498,2533.8,2533.5,0.47342]
[1749889234163,0.47339,2533.7,2533.6,24.308]
[1749889234362,0.47341,2533.6,2533.5,0.6296]
[1749889234668,0.4734,2533.7,2533.5,24.9296]
[1749889235261,0.4734,2533.7,2533.5,26.77893]
[1749889235462,1.14499,2533.8,2533.5,26.77893]
[1749889235664,3.68117,2533.9,2533.5,26.3055]
[1749889235864,3.2078,2533.9,2533.7,0.47339]
[1749889236070,3.2078,2533.9,2533.8,25.6216]
[1749889236465,0.47335,2534.0,2533.8,25.6216]
[1749889237167,0.47335,2534.0,2533.8,31.9436]
[1749889237469,3.8398,2534.2,2533.6,3.2078]
[1749889237658,0.47339,2533.7,2533.6,3.2078]
[1749889237856,0.47339,2533.7,2533.6,27.5068]
[1749889238263,0.6709,2533.9,2533.6,27.5068]
[1749889238666,0.47339,2533.8,2533.6,28.8643]
[1749889238970,0.47339,2533.7,2533.6,9.5288]
[1749889239168,0.47339,2533.7,2533.6,33.8348]
[1749889240369,1.15359,2533.8,2533.6,33.8348]
[1749889240566,0.47339,2533.7,2533.6,33.8348]
[1749889240759,0.47339,2533.7,2533.6,33.8278]
[1749889242270,0.47339,2533.7,2533.6,3.2078]
[1749889242468,0.47339,2533.7,2533.6,33.8178]
[1749889244471,0.47339,2533.7,2533.6,3.2078]
[1749889244972,0.47339,2533.7,2533.6,27.4888]
[1749889245167,1.78269,2533.7,2533.6,27.4888]
[1749889246776,0.47343,2533.5,2533.4,6.333]
[1749889247073,0.47347,2533.3,2533.2,27.4788]
[1749889247667,1.16067,2533.3,2533.2,27.4788]
[1749889247864,0.6872,2533.3,2533.2,27.4818]
[1749889248569,0.6872,2533.3,2533.2,27.95529]
[1749889248973,0.6872,2533.3,2533.2,27.4818]
[1749889249175,0.6872,2533.3,2533.2,27.95529]
[1749889249775,0.6872,2533.3,2533.2,27.4818]
[1749889250171,3.2078,2533.9,2533.2,27.4818]
[1749889250375,1.63489229,2533.8,2533.5,3.2078]
[1749889250576,1.46379229,2533.7,2533.6,24.281]
[1749889250776,0.4734,2533.7,2533.6,24.281]
[1749889251375,1.464312,2533.7,2533.6,24.281]
[1749889254473,1.46616781,2533.7,2533.6,24.281]
[1749889255674,0.47341,2533.6,2533.5,6.333]
[1749889255874,1.46617781,2533.6,2533.5,30.6]
[1749889257577,1.46619781,2533.6,2533.5,30.6]
[1749889258472,1.46619781,2533.6,2533.3,2.6236]
[1749889258473,0.47345,2533.4,2533.3,2.6236]
[1749889258678,1.46621781,2533.4,2533.3,30.591]
[1749889259077,0.99276781,2533.4,2533.3,31.06447]
[1749889259276,0.6445,2533.8,2533.3,31.06447]
[1749889259277,0.6445,2533.8,2533.3,1.9471]
[1749889259578,0.99458602,2533.7,2533.4,6.333]
[1749889259770,0.47343,2533.5,2533.4,30.602]